bitfinex/quotes_ETHUSD_20240907
["timestamp","ask_amount","ask_price","bid_price","bid_amount"]
[1725701988582,0.55,2287.7,2287.5,4.37158]
[1725701988782,1.56433864,2287.6,2287.5,4.37158]
[1725701989587,1.56433864,2287.6,2287.5,8.83058551]
[1725701990024,4.3092466,2287.8,2287.7,4.3712]
[1725701990524,4.74017126,2287.8,2287.5,4.3714]
[1725701991427,4.74017126,2287.8,2287.6,0.14543502]
[1725701992702,4.74017126,2287.8,2287.7,0.14058718]
[1725701992902,4.74017126,2287.8,2287.5,4.05903502]
[1725701993133,4.74017126,2287.8,2287.6,0.14058718]
[1725701993459,0.91109913,2287.7,2287.6,0.14058718]
[1725701993604,1.46109913,2287.7,2287.6,0.14058718]
[1725701994321,1.46109913,2287.7,2287.4,4.37172]
[1725701994520,1.46109913,2287.7,2287.6,0.14184717]
[1725701994839,1.46109913,2287.7,2287.4,4.37172]
[1725701995043,1.46109913,2287.7,2287.6,0.14184717]
[1725701995341,3.7592466,2287.5,2287.4,4.37172]
[1725701997908,3.7592466,2287.5,2287.3,4.37184]
[1725701998105,3.7592466,2287.5,2287.1,4.81021]
[1725701998106,4.43910126,2287.5,2287.1,4.81021]
[1725701998340,0.55,2287.4,2287.1,4.81021]
[1725701999448,3.7592466,2287.7,2287.3,4.37185]
[1725701999653,0.55,2287.6,2287.3,4.37185]
[1725702000313,0.55,2287.6,2287.4,0.14191293]
[1725702000514,1.46112713,2287.6,2287.4,0.14191293]
[1725702002445,0.55,2287.6,2287.4,0.14191293]
[1725702003315,0.55,2287.6,2287.5,4.37158]
[1725702003517,0.55,2287.6,2287.4,4.37177]
[1725702003723,3.7592466,2288.0,2287.7,4.37108]
[1725702004256,3.7592466,2288.0,2287.8,4.51282293]
[1725702004619,4.13517126,2288.0,2287.8,4.51282293]
[1725702005122,4.13517126,2288.0,2287.9,4.37082]
[1725702005123,3.7592466,2288.0,2287.9,4.37082]
[1725702005615,3.7592466,2288.0,2287.9,0.14191293]
[1725702006360,4.3092466,2288.0,2287.9,0.14191293]
[1725702007427,3.7592466,2288.0,2287.9,4.51273293]
[1725702007854,3.7592466,2288.0,2287.9,0.14191293]
[1725702008443,6.2485466,2288.0,2287.9,0.14191293]
[1725702009127,6.93872121,2288.0,2287.9,0.14191293]
[1725702009351,7.48872121,2288.0,2287.6,4.37126]
[1725702009551,3.7592466,2287.7,2287.6,4.37126]
[1725702009974,1.56637854,2287.7,2287.6,4.37126]
[1725702011974,1.56637854,2287.7,2287.5,24.07462224]
[1725702011975,2.11637854,2287.7,2287.5,24.07471224]
[1725702012180,1.56637854,2287.7,2287.5,19.70317224]
[1725702012374,0.55,2287.6,2287.5,19.70317224]
[1725702012937,1.56637854,2287.7,2287.5,19.70317224]
[1725702013180,1.56637854,2287.7,2287.5,24.07475224]
[1725702014345,1.56637854,2287.7,2287.5,19.70317224]
[1725702014868,1.56637854,2287.7,2287.4,9.18127]
[1725702015068,1.56637854,2287.5,2287.4,4.8096]
[1725702017415,1.56637854,2287.5,2287.4,4.8970261]
[1725702017722,2.4151,2288.1,2287.3,4.37194]
[1725702018019,1.56637854,2288.1,2287.9,4.37066]
[1725702018228,1.56637854,2288.1,2287.9,5.244818]
[1725702018377,1.56637854,2288.1,2287.9,4.37066]
[1725702018582,1.56637854,2288.1,2288.0,4.37062]
[1725702018783,1.56637854,2288.2,2288.0,4.37053]
[1725702019003,1.56637854,2288.2,2288.1,4.37043]
[1725702019829,2.4151,2288.7,2288.2,4.37022]
[1725702020120,1.56637854,2288.3,2288.2,4.37022]
[1725702020278,2.11637854,2288.3,2288.2,4.37022]
[1725702020485,2.4151,2288.9,2288.5,4.36956]
[1725702020722,1.56637854,2288.6,2288.5,4.36956]
[1725702021523,1.56637854,2288.6,2288.5,4.50971952]
[1725702022522,2.11637854,2288.6,2288.5,0.14015952]
[1725702022888,2.11637854,2288.6,2288.5,4.50982952]
[1725702023903,1.56637854,2288.6,2288.5,8.87949952]
[1725702027215,3.15258185,2289.1,2288.7,4.36928]
[1725702027420,1.56637854,2288.8,2288.7,4.36928]
[1725702027733,2.11637854,2288.8,2288.7,4.36928]
[1725702030737,1.56637854,2288.8,2288.7,8.73857]
[1725702031039,1.56637854,2289.0,2288.9,4.36874]
[1725702031405,2.11637854,2289.0,2288.9,4.36874]
[1725702032031,3.486077,2289.4,2289.1,4.36841]
[1725702032241,1.56637854,2289.2,2289.1,4.36841]
[1725702032492,2.11637854,2289.2,2289.1,4.36841]
[1725702035059,4.81412409,2289.2,2289.0,4.36867]
[1725702035256,0.55,2289.1,2289.0,4.36867]
[1725702035568,0.45775551,2289.2,2289.1,4.36852]
[1725702035781,2.57413405,2289.2,2289.1,4.36852]
[1725702036376,2.57413405,2289.2,2289.1,4.59738948]
[1725702037110,9.92348515,2289.2,2289.1,0.22886948]
[1725702037421,4.36853,2289.1,2288.6,4.36932]
[1725702037609,1.56637854,2288.7,2288.6,4.36932]
[1725702038110,1.56637854,2288.7,2288.6,8.7388]
[1725702038406,1.56637854,2288.9,2288.8,4.3691]
[1725702038607,3.38275551,2289.2,2288.9,4.36882]
[1725702038815,1.56637854,2289.0,2288.9,4.36882]
[1725702040814,1.56637854,2289.0,2288.9,8.73773]
[1725702041032,3.38275551,2289.2,2289.1,4.36852]
[1725702041205,5.3985173,2289.2,2289.0,4.36869]
[1725702041385,1.56637854,2289.1,2289.0,4.36869]
[1725702042424,2.11637854,2289.1,2288.9,4.36882]
[1725702043699,2.11637854,2289.1,2288.9,8.73764]
[1725702044090,2.11637854,2289.1,2288.9,4.36882]
[1725702044427,2.65623027,2289.1,2288.9,4.36882]
[1725702046494,2.65623027,2289.1,2288.9,4.36881]
[1725702046915,2.11637854,2289.1,2288.9,4.36881]
[1725702048993,2.11637854,2289.1,2288.9,8.73761]
[1725702049427,4.55847854,2289.1,2288.9,4.3688]
[1725702051644,4.55847854,2289.1,2289.0,0.21317028]
[1725702051855,2.11637854,2289.1,2289.0,0.21317028]
[1725702052159,2.11637854,2289.1,2289.0,4.58188028]
[1725702054744,2.11637854,2289.1,2289.0,0.21317028]
[1725702054980,2.61800194,2289.1,2289.0,0.21317028]
[1725702055248,2.11637854,2289.1,2289.0,4.58188028]
[1725702056311,2.11637854,2289.1,2289.0,0.21317028]
[1725702057943,2.11637854,2289.1,2289.0,4.58188028]
[1725702059061,2.11637854,2289.1,2289.0,0.21317028]
[1725702059833,2.11637854,2289.1,2289.0,4.58188028]
[1725702073038,4.96790194,2289.1,2289.0,0.21317028]
[1725702073239,4.96790194,2289.1,2288.5,0.438]
[1725702073240,4.36924,2288.8,2288.4,7.38]
[1725702073536,0.55,2288.7,2288.4,7.38]
[1725702073741,0.55,2288.7,2288.6,4.36948]
[1725702073939,2.02415257,2288.7,2288.6,4.36948]
[1725702074181,2.57415257,2288.7,2288.6,4.36948]
[1725702075742,2.57415257,2288.7,2288.4,11.74967]
[1725702075938,1.56637854,2288.5,2288.4,11.74967]
[1725702076248,1.56637854,2288.5,2288.3,4.36989]
[1725702076440,2.4957168,2288.5,2288.0,4.37061]
[1725702076754,4.37103,2287.8,2287.3,11.75182]
[1725702076960,1.56637854,2287.5,2287.3,4.37182]
[1725702077965,1.56637854,2287.5,2287.2,4.37215]
[1725702079447,1.56637854,2287.5,2287.2,4.45958199]
[1725702079798,1.56637854,2287.5,2287.2,4.37215]
[1725702079943,3.76000397,2287.6,2287.2,4.37215]
[1725702080143,0.55,2287.5,2287.2,4.37215]
[1725702081142,0.55,2287.5,2286.9,0.005]
[1725702081143,3.76000397,2287.3,2286.9,0.005]
[1725702081350,3.76000397,2287.3,2287.0,0.19949598]
[1725702081351,0.55,2287.2,2287.0,0.19949598]
[1725702082877,0.55,2287.2,2287.0,4.57200598]
[1725702083086,0.55,2287.2,2287.0,8.94451598]
[1725702083255,0.55,2287.2,2287.0,4.57200598]
[1725702083845,0.55,2287.2,2287.0,8.94444598]
[1725702084069,0.55,2287.2,2287.0,4.57193598]
[1725702084692,3.76000397,2287.3,2287.2,4.37215]
[1725702085023,6.72123,2287.7,2287.3,4.37193]
[1725702085024,3.76000397,2287.6,2287.3,4.37193]
[1725702085592,3.76000397,2287.6,2287.4,0.20315574]
[1725702085912,3.76000397,2287.6,2287.4,4.57477574]
[1725702086051,3.76000397,2287.8,2287.5,4.37158]
[1725702086566,3.76000397,2287.8,2287.6,0.20315574]
[1725702086972,3.76000397,2287.8,2287.7,4.3712]
[1725702087690,3.76000397,2287.8,2287.7,4.57435574]
[1725702088173,4.31000397,2287.8,2287.7,4.57435574]
[1725702089229,4.76785179,2287.8,2287.7,4.57435574]
[1725702090298,4.21785179,2287.8,2287.7,4.57435574]
[1725702095415,4.21785179,2287.8,2287.7,0.20315574]
[1725702096316,4.76785179,2287.8,2287.7,0.20315574]
[1725702097104,5.49045287,2287.8,2287.7,0.20315574]
[1725702097530,5.49045287,2287.8,2287.4,8.74331]
[1725702097695,4.76785179,2287.8,2287.7,0.20280594]
[1725702097891,4.76785179,2287.8,2287.4,8.74331]
[1725702098096,0.55,2287.7,2287.4,8.74331]
[1725702098700,4.21785179,2287.8,2287.6,4.37139]
[1725702099111,4.21785179,2287.8,2287.5,8.74294]
[1725702099620,4.21785179,2287.8,2287.6,4.37128]
[1725702101943,0.45784782,2287.8,2287.7,4.3712]
[1725702102126,2.57424485,2287.8,2287.7,4.3712]
[1725702103017,2.57424485,2287.8,2287.5,8.74284]
[1725702103203,1.56639703,2287.6,2287.5,4.37139]
[1725702104139,1.56639703,2287.6,2287.4,4.37169]
[1725702104342,1.56639703,2287.6,2287.4,8.74336]
[1725702104709,1.56639703,2287.6,2287.5,4.37158]
[1725702104911,2.11639703,2287.6,2287.5,4.37158]
[1725702105319,2.60434152,2287.6,2287.3,4.37195]
[1725702105535,1.56639703,2287.4,2287.3,4.37195]
[1725702106043,2.11639703,2287.4,2287.3,4.37195]
[1725702108633,2.11639703,2287.4,2287.2,4.37213]
[1725702109019,2.11639703,2287.4,2287.2,8.74426]
[1725702109831,2.11639703,2287.4,2287.3,4.37196]
[1725702111510,2.11639703,2287.4,2287.3,4.57447079]
[1725702111804,0.55,2287.4,2287.3,4.57447079]
[1725702112005,2.11639703,2287.4,2287.3,4.57447079]
[1725702115069,4.42189703,2287.4,2287.3,4.57447079]
[1725702115246,2.3055,2287.7,2287.4,4.37166]
[1725702115414,1.56639703,2287.5,2287.4,4.37166]
[1725702115612,1.56639703,2287.5,2287.4,4.57424731]
[1725702116526,2.11639703,2287.5,2287.4,4.57424731]
[1725702118751,0.55,2287.5,2287.4,4.57424731]
[1725702118959,1.56639703,2287.5,2287.4,4.57424731]
[1725702119262,2.11639703,2287.5,2287.4,4.57424731]
[1725702122742,2.55858673,2287.5,2287.4,0.20258731]
[1725702123135,2.55858673,2287.5,2287.2,4.3721]
[1725702123349,1.56639703,2287.3,2287.2,4.3721]
[1725702123548,2.11639703,2287.3,2287.2,4.3721]
[1725702125367,1.56639703,2287.3,2287.2,4.3721]
[1725702125675,1.56639703,2287.3,2287.2,8.83168526]
[1725702126033,0.45790848,2287.9,2287.8,4.37101]
[1725702126235,2.02430551,2287.9,2287.8,4.37101]
[1725702126679,2.02430551,2287.9,2287.8,4.57363007]
[1725702126980,4.32980551,2287.9,2287.8,0.20262007]
[1725702127317,2.3055,2287.7,2287.3,4.37187]
[1725702127486,1.56639703,2287.4,2287.2,4.37215]
[1725702127694,3.87189703,2287.4,2287.2,8.74421]
[1725702127894,3.87189703,2287.4,2287.2,4.37206]
[1725702128524,0.55,2287.3,2287.2,4.37206]
[1725702130212,0.55,2287.3,2287.1,4.37227]
[1725702130415,1.56639703,2287.2,2287.1,4.37227]
[1725702130720,2.11639703,2287.2,2287.1,4.37227]
[1725702135964,2.11639703,2287.2,2287.0,4.37241]
[1725702135965,2.11639703,2287.2,2287.0,8.74484]
[1725702136252,2.11639703,2287.2,2287.1,4.37234]
[1725702137771,2.50607823,2287.7,2287.1,4.37234]
[1725702137980,1.56639703,2287.4,2287.3,4.37195]
[1725702138141,1.56639703,2287.4,2287.1,4.37226]
[1725702138641,1.56639703,2287.4,2287.1,8.74452]
[1725702139375,0.55,2287.3,2287.1,8.74452]
[1725702141441,0.55,2287.3,2287.2,4.57464989]
[1725702141957,1.56639703,2287.4,2287.2,4.57464989]
[1725702143684,3.96119703,2287.4,2287.2,4.57464989]
[1725702144855,4.46980092,2287.4,2287.2,4.57464989]
[1725702146598,4.46980092,2287.4,2287.3,4.37196]
[1725702146811,4.51119703,2287.4,2287.3,4.37196]
[1725702146977,4.51119703,2287.4,2287.3,4.57451452]
[1725702147173,4.51119703,2287.4,2287.3,0.20255452]
[1725702147606,4.51119703,2287.4,2287.2,8.7442]
[1725702147917,4.51119703,2287.4,2287.3,0.20255452]
[1725702148108,4.51119703,2287.4,2287.2,8.7442]
[1725702148496,4.51119703,2287.4,2287.3,0.20255452]
[1725702148901,4.51119703,2287.4,2287.2,8.7442]
[1725702149099,4.51119703,2287.4,2287.3,0.20255452]
[1725702149389,2.11639703,2287.4,2287.2,8.7442]
[1725702149694,2.11639703,2287.4,2287.3,4.57451452]
[1725702152074,2.67898092,2287.4,2287.3,0.20255452]
[1725702152301,2.67898092,2287.4,2286.9,0.005]
[1725702152302,11.12968,2287.0,2286.9,0.005]
[1725702152503,12.69607703,2287.0,2286.9,0.005]
[1725702152726,13.96568473,2287.0,2286.9,0.005]
[1725702152896,14.51568473,2287.0,2286.9,0.005]
[1725702153997,14.51568473,2287.0,2286.9,0.1951114]
[1725702154201,10.14314473,2287.0,2286.9,0.1951114]
[1725702154392,4.2042077,2287.0,2286.9,0.1951114]
[1725702154595,1.56639703,2287.0,2286.9,4.5678414]
[1725702155396,1.56639703,2287.0,2286.9,8.9405714]
[1725702155998,3.76150638,2287.1,2287.0,4.37247]
[1725702156199,3.76150638,2287.1,2287.0,8.74501]
[1725702156445,3.76150638,2287.1,2287.0,8.93483705]
[1725702158810,2.3846,2287.6,2287.1,4.37219]
[1725702159016,0.71125993,2287.7,2287.1,4.37219]
[1725702159017,3.76150638,2287.5,2287.4,4.37166]
[1725702159722,3.76150638,2287.5,2287.4,8.93312583]
[1725702160359,4.31150638,2287.5,2287.4,8.93312583]
[1725702162280,4.31150638,2287.5,2287.4,4.56135583]
[1725702163444,6.69610638,2287.5,2287.4,0.18969583]
[1725702163749,7.80285302,2287.5,2287.2,4.37203]
[1725702163981,3.76150638,2287.3,2287.2,4.37203]
[1725702164172,4.31150638,2287.3,2287.2,4.37203]
[1725702167456,2.3846,2287.2,2287.0,4.37239]
[1725702167773,3.76150638,2287.1,2287.0,4.37239]
[1725702167979,4.31150638,2287.1,2286.9,0.005]
[1725702168289,4.43111702,2287.1,2286.9,0.005]
[1725702168491,0.55,2287.0,2286.9,0.005]
[1725702171388,0.55,2287.0,2286.9,0.19442257]
[1725702178097,2.11762236,2287.0,2286.9,0.19442257]
[1725702182530,2.11762236,2287.0,2286.9,4.56715257]
[1725702183403,4.94067377,2287.0,2286.9,0.19442257]
[1725702183606,0.88575141,2287.0,2286.9,4.56715257]
[1725702183927,2.11762236,2287.0,2286.9,4.56715257]
[1725702184129,0.45799488,2287.2,2287.1,4.37234]
[1725702184349,2.02561724,2287.2,2287.1,4.56262628]
[1725702186026,2.48787051,2287.2,2287.1,0.19028628]
[1725702186215,3.03787051,2287.2,2287.1,0.19028628]
[1725702186421,3.03787051,2287.2,2286.9,0.005]
[1725702186631,1.56762236,2287.0,2286.9,0.005]
[1725702186940,4.37445,2286.0,2285.4,12.46]
[1725702187148,4.37445,2286.0,2285.6,4.37508]
[1725702187149,1.56762236,2285.7,2285.6,4.37508]
[1725702187301,2.4873,2286.5,2285.5,0.08749706]
[1725702187505,1.56762236,2285.8,2285.6,4.37511]
[1725702187715,1.56762236,2285.8,2285.6,4.37521]
[1725702188340,1.56762236,2285.8,2285.7,4.37502]
[1725702189520,1.56762236,2285.8,2285.6,4.37515]
[1725702189729,1.56762236,2285.7,2285.6,4.4626412]
[1725702190043,3.76592356,2285.8,2285.6,4.37515]
[1725702190725,3.76592356,2285.8,2285.5,4.37535]
[1725702190934,3.76592356,2285.8,2285.5,5.29429]
[1725702191137,3.76592356,2285.8,2285.6,4.37512]
[1725702191454,3.76592356,2285.8,2285.5,8.7506]
[1725702191611,3.76592356,2285.8,2285.6,4.37519]
[1725702192999,3.76592356,2285.8,2285.6,3.91719]
[1725702193205,3.76592356,2285.8,2285.7,4.37502]
[1725702193413,3.76592356,2285.8,2285.6,4.3752]
[1725702194510,3.76592356,2285.8,2285.5,4.856699]
[1725702194845,3.76592356,2285.8,2285.4,0.4388]
[1725702195055,3.76592356,2285.8,2285.5,4.37531]
[1725702198243,3.76592356,2285.8,2285.4,4.81424]
[1725702198446,3.76592356,2285.8,2285.4,9.18974]
[1725702198818,3.76592356,2285.8,2285.7,4.37502]
[1725702199025,8.74641,2286.7,2286.1,4.37415]
[1725702199224,3.76592356,2286.3,2286.2,0.08747328]
[1725702199521,3.76592356,2287.0,2286.5,4.37349]
[1725702199717,3.76592356,2287.0,2286.7,8.74601]
[1725702199941,3.76592356,2287.0,2286.7,4.373]
[1725702200451,3.76592356,2287.0,2286.8,4.46034964]
[1725702200947,3.76592356,2287.2,2286.9,4.37273]
[1725702201148,3.76592356,2287.2,2286.9,4.4601727]
[1725702201450,3.76592356,2287.2,2287.0,0.18014574]
[1725702203378,3.76592356,2287.2,2286.6,8.74637]
[1725702203379,4.92234,2287.1,2286.6,8.74637]
[1725702203548,3.76592356,2286.9,2286.7,0.18014574]
[1725702203732,3.76592356,2286.9,2286.7,4.55315574]
[1725702204469,3.76592356,2286.9,2286.7,0.18014574]
[1725702204845,3.76592356,2286.9,2286.7,4.55322574]
[1725702206057,4.31592356,2287.1,2286.7,4.55322574]
[1725702215591,4.31592356,2287.1,2286.8,4.3729]
[1725702215791,4.31592356,2287.1,2286.9,0.17895318]
[1725702220000,1.56737305,2287.0,2286.9,0.17895318]
[1725702220208,2.11737305,2287.0,2286.9,0.17895318]
[1725702220875,1.56737305,2287.0,2286.9,4.63900229]
[1725702221076,1.56737305,2287.0,2286.9,4.55155318]
[1725702222366,1.56737305,2287.0,2286.9,0.17895318]
[1725702222877,4.57257305,2287.0,2286.9,0.17895318]
[1725702223073,2.57463036,2287.0,2286.9,0.17895318]
[1725702223273,2.57463036,2287.0,2286.6,4.37319]
[1725702223507,0.55,2286.9,2286.6,4.37319]
[1725702223664,1.56737305,2286.8,2286.6,4.37319]
[1725702224369,1.56737305,2286.8,2286.6,4.46064682]
[1725702224879,1.56737305,2286.8,2286.6,4.37319]
[1725702225066,1.56737305,2286.8,2286.6,4.46064668]
[1725702225576,2.02539725,2286.8,2286.6,4.37319]
[1725702226594,0.4580242,2286.8,2286.7,4.37311]
[1725702229973,0.4580242,2286.8,2286.7,8.74622]
[1725702231408,0.4580242,2286.8,2286.7,8.92399148]
[1725702239933,0.4580242,2286.8,2286.7,9.81639063]
[1725702243049,0.4580242,2286.8,2286.7,8.92399148]
[1725702243255,0.4580242,2286.8,2286.7,13.29710148]
[1725702245939,0.4580242,2286.8,2286.7,8.92399148]
[1725702250448,0.4580242,2286.8,2286.7,4.55088148]
[1725702250740,2.02539725,2286.8,2286.7,4.55088148]
[1725702251438,2.02539725,2286.8,2286.7,0.17777148]
[1725702251741,2.02539725,2286.8,2286.7,4.55088148]
[1725702254189,0.4580242,2286.8,2286.7,9.01144604]
[1725702254318,0.4580242,2286.8,2286.7,9.79750689]
[1725702255359,0.4580242,2286.8,2286.7,14.17061689]
[1725702270281,2.2905,2288.0,2287.1,4.81103]
[1725702270445,2.74842357,2288.0,2287.9,4.37082]
[1725702270650,2.2905,2288.0,2287.9,4.5469516]
[1725702271880,1.56737305,2288.1,2287.9,4.5469516]
[1725702272180,1.56737305,2288.1,2287.9,4.63435824]
[1725702272578,1.95316036,2288.1,2287.9,4.63435824]
[1725702273292,1.56737305,2288.1,2287.9,4.63435824]
[1725702273588,3.85787305,2288.3,2288.1,4.37033]
[1725702273774,3.85787305,2288.3,2288.1,8.74066]
[1725702273976,3.85787305,2288.3,2288.2,0.17576008]
[1725702275284,3.85787305,2288.3,2288.2,0.17569452]
[1725702275789,3.85787305,2288.3,2288.0,4.45799139]
[1725702275949,2.2905,2288.3,2288.2,0.17569452]
[1725702276149,3.85787305,2288.3,2288.1,0.17573823]
[1725702276352,1.56737305,2288.2,2287.9,4.37068]
[1725702276551,1.56737305,2288.0,2287.9,4.37068]
[1725702276776,3.85787305,2288.0,2287.8,4.37091]
[1725702284849,3.85787305,2288.0,2287.8,8.74183]
[1725702289180,2.2905,2288.0,2287.9,4.37082]
[1725702289332,3.85787305,2288.0,2287.9,4.37082]
[1725702291478,3.85787305,2288.0,2287.9,4.54629595]
[1725702294065,2.2905,2288.0,2287.9,4.54629595]
[1725702294381,1.56737305,2288.0,2287.9,4.54629595]
[1725702295171,0.45787614,2288.1,2288.0,8.74124]
[1725702295503,2.02524919,2288.1,2288.0,9.64165249]
[1725702295702,2.02524919,2288.1,2288.0,9.81712844]
[1725702299195,0.45787614,2288.1,2288.0,9.81712844]
[1725702299371,1.56737305,2288.2,2288.0,9.81712844]
[1725702299571,1.56737305,2288.2,2288.1,10.24704743]
[1725702299972,1.56737305,2288.2,2288.1,10.42202085]
[1725702300800,0.45786687,2288.4,2288.3,4.37005]
[1725702300977,2.02523992,2288.4,2288.3,4.45744257]
[1725702301176,2.02523992,2288.4,2288.3,4.54501249]
[1725702303629,2.02523992,2288.4,2288.3,5.57841082]
[1725702304218,2.02523992,2288.4,2288.3,4.54501249]
[1725702308745,1.56737305,2288.4,2288.3,4.54501249]
[1725702309245,1.56737305,2288.4,2288.3,8.91506249]
[1725702310581,0.11037713,2288.6,2288.5,4.36967]
[1725702310784,1.56737305,2288.6,2288.5,4.36967]
[1725702310948,1.56737305,2288.6,2288.5,4.5442174]
[1725702311145,1.56737305,2288.6,2288.5,5.43561114]
[1725702317672,1.56737305,2288.6,2288.5,0.1745474]
[1725702317973,1.56737305,2288.6,2288.3,4.37003]
[1725702318204,1.56737305,2288.4,2288.3,4.37003]
[1725702320782,1.56737305,2288.4,2288.3,8.74008]
[1725702320983,0.45786497,2288.8,2288.6,4.36948]
[1725702321221,1.56737305,2288.7,2288.6,4.36948]
[1725702321584,1.56737305,2288.7,2288.5,4.36962]
[1725702321784,1.56737305,2288.6,2288.5,4.36962]
[1725702323724,1.56737305,2288.6,2288.5,4.97640116]
[1725702330301,2.4797,2288.9,2288.7,4.36919]
[1725702330502,1.56737305,2288.9,2288.8,4.3691]
[1725702335558,2.4196,2289.1,2288.9,4.36891]
[1725702335733,1.56737305,2289.0,2288.9,4.80582]
[1725702336318,1.56737305,2289.0,2288.9,9.17473]
[1725702336524,2.4196,2289.4,2289.2,4.36824]
[1725702336720,4.36734,2289.8,2289.2,0.436824]
[1725702336721,2.4196,2289.6,2289.2,0.436824]
[1725702336950,2.4196,2289.6,2289.4,4.36779]
[1725702337443,2.4196,2289.6,2289.5,0.23778153]
[1725702337647,2.4196,2289.6,2289.2,4.3682]
[1725702337850,1.56737305,2289.3,2289.2,4.3682]
[1725702338103,1.56737305,2289.3,2289.2,5.241879]
[1725702340199,1.56737305,2289.3,2289.2,4.3682]
[1725702341295,2.4196,2289.6,2289.4,4.36794]
[1725702341506,1.56737305,2289.5,2289.4,4.36794]
[1725702344001,2.4196,2289.8,2289.5,4.36776]
[1725702344179,1.56737305,2289.6,2289.5,4.36776]
[1725702344503,1.56737305,2289.6,2289.4,4.36793]
[1725702344698,1.56737305,2289.5,2289.4,4.36793]
[1725702345803,2.4196,2289.8,2289.6,4.36745]
[1725702346005,1.56737305,2289.7,2289.6,4.36745]
[1725702347615,1.56737305,2289.7,2289.6,8.73502]
[1725702348903,0.45776572,2289.9,2289.8,4.36719]
[1725702349081,2.02513877,2289.9,2289.8,4.36719]
[1725702350475,2.02513877,2289.9,2289.8,5.240644]
[1725702351489,2.02513877,2289.9,2289.8,5.47641754]
[1725702352327,1.56737305,2289.9,2289.8,5.47641754]
[1725702353196,1.56737305,2289.9,2289.8,1.10922754]
[1725702353706,1.56737305,2289.9,2289.8,5.47641754]
[1725702354926,0.45758593,2290.2,2290.0,4.36679]
[1725702355227,1.56737305,2290.1,2290.0,5.35111075]
[1725702356202,2.2925,2290.6,2290.1,4.36646]
[1725702356423,1.56737305,2290.3,2290.2,4.36634]
[1725702356591,1.56737305,2290.3,2290.2,5.34678437]
[1725702357100,2.2925,2290.2,2290.0,0.98432075]
[1725702357302,1.56737305,2290.1,2289.8,4.36715]
[1725702357627,2.2925,2290.2,2289.8,4.36715]
[1725702357628,1.56737305,2289.9,2289.8,4.36715]
[1725702358509,2.2925,2290.2,2289.9,4.36697]
[1725702358916,1.56737305,2290.0,2289.9,4.36697]
[1725702360438,1.56737305,2290.0,2289.8,4.36715]
[1725702360738,1.56737305,2290.0,2289.8,4.3671]
[1725702361297,1.56737305,2290.0,2289.9,4.367]
[1725702361724,1.56737305,2290.0,2289.9,8.734]
[1725702363942,2.2925,2290.4,2290.2,4.36633]
[1725702364128,1.56737305,2290.3,2290.2,4.36633]
[1725702364653,1.56737305,2290.3,2290.2,8.73276]
[1725702364956,1.56737305,2290.3,2290.2,9.606036]
[1725702365455,1.56737305,2290.3,2290.2,5.239606]
[1725702366339,1.56737305,2290.3,2290.2,5.4744525]
[1725702366863,8.22611305,2290.3,2290.2,0.2348465]
[1725702367058,2.2925,2289.8,2289.6,7.38]
[1725702367265,1.56737305,2289.7,2289.6,7.38]
[1725702367966,3.75307715,2289.7,2289.6,7.38]
[1725702371280,3.75307715,2289.7,2289.4,4.36795]
[1725702371420,3.75307715,2289.7,2289.3,4.36801]
[1725702371624,3.75307715,2289.7,2289.5,4.36759]
[1725702371822,3.75307715,2289.7,2289.6,4.36757]
[1725702374537,3.75307715,2289.7,2289.6,4.58680637]
[1725702375948,3.75307715,2289.9,2289.7,4.36738]
[1725702376275,3.75307715,2289.9,2289.8,4.36712]
[1725702376576,3.75307715,2289.9,2289.8,4.58635637]
[1725702378865,3.75307715,2289.9,2289.8,0.21923637]
[1725702381172,3.75307715,2289.9,2289.8,4.58642637]
[1725702381333,3.75307715,2290.1,2289.9,4.36691]
[1725702381538,3.75307715,2290.1,2290.0,0.21962761]
[1725702382556,3.75307715,2290.2,2290.0,4.58643761]
[1725702382757,3.75307715,2290.2,2290.0,4.58634761]
[1725702382960,0.55,2290.3,2290.0,8.95305761]
[1725702383281,3.75307715,2290.2,2290.0,8.95305761]
[1725702383665,3.75307715,2290.4,2290.3,4.36621]
[1725702384171,3.75307715,2290.4,2290.3,4.58570715]
[1725702384384,3.75307715,2290.4,2290.3,0.21949715]
[1725702384747,3.75307715,2290.4,2290.2,4.36641]
[1725702384947,3.75307715,2290.4,2290.3,0.21917106]
[1725702385185,3.75307715,2290.4,2290.2,4.36641]
[1725702385382,3.75307715,2290.4,2290.3,0.21917106]
[1725702385884,3.75307715,2290.4,2290.1,4.36658]
[1725702386182,3.75307715,2290.4,2290.3,4.36624]
[1725702386783,3.75307715,2290.4,2290.3,4.58541106]
[1725702389052,3.75307715,2290.4,2290.3,0.21917106]
[1725702389484,3.75307715,2290.4,2290.2,4.36633]
[1725702389684,3.75307715,2290.4,2290.3,0.21126748]
[1725702389855,3.75307715,2290.4,2290.3,4.57750748]
[1725702390056,3.75307715,2290.4,2290.3,4.36624]
[1725702390257,3.75307715,2290.4,2290.3,4.57750748]
[1725702391367,3.75307715,2290.4,2290.3,0.21126748]
[1725702391570,6.55838487,2290.4,2290.0,4.36667]
[1725702391776,3.75307715,2290.1,2290.0,4.36667]
[1725702392086,1.56325662,2290.1,2290.0,4.36667]
[1725702392259,1.56325662,2290.1,2289.8,4.36706]
[1725702392260,1.56325662,2290.1,2289.9,4.36699]
[1725702392458,1.56325662,2290.0,2289.9,4.36699]
[1725702393298,1.56325662,2290.0,2289.9,10.345395]
[1725702396370,1.56325662,2290.0,2289.9,10.55669509]
[1725702398111,1.56325662,2290.2,2290.1,8.73324]
[1725702398598,1.56325662,2290.2,2290.1,4.57792009]
[1725702401705,4.39258228,2290.2,2290.1,0.21130009]
[1725702401905,4.39258228,2290.2,2289.5,7.38]
[1725702401906,4.36729,2289.8,2289.5,7.38]
[1725702402109,1.56325662,2289.6,2289.2,4.36817]
[1725702402322,1.56325662,2289.4,2289.2,4.36817]
[1725702402613,1.56325662,2289.4,2289.2,8.7364]
[1725702402771,1.56325662,2289.4,2289.2,11.59405]
[1725702403084,1.56325662,2289.4,2289.2,7.22581]
[1725702403972,3.75384276,2289.4,2289.2,7.22581]
[1725702404198,3.75384276,2289.4,2289.2,11.59405]
[1725702404394,3.75384276,2289.4,2289.2,7.22581]
[1725702404595,3.75384276,2289.4,2289.2,11.59404]
[1725702405708,3.75384276,2289.4,2289.3,4.36814]
[1725702409518,3.75384276,2289.4,2289.3,4.57354914]
[1725702411080,3.75384276,2289.4,2289.3,0.20540914]